bitfinex/quotes_ETHUSD_20250822
["timestamp","ask_amount","ask_price","bid_price","bid_amount"]
[1755841783937,3.0,4298.9,4298.8,0.7459]
[1755841784133,6.917,4298.9,4298.8,0.7459]
[1755841784656,6.917,4298.9,4298.8,0.8904607]
[1755841784956,6.919,4298.9,4298.8,0.8904607]
[1755841785459,3.919,4298.9,4298.8,0.8904607]
[1755841786870,0.002,4298.9,4298.8,0.8904607]
[1755841787830,0.002,4298.9,4298.8,1.5504607]
[1755841788229,0.002,4298.9,4298.8,1.573723]
[1755841788467,0.002,4298.9,4298.8,3.89995357]
[1755841788969,0.002,4298.9,4298.8,1.5504607]
[1755841794470,0.002,4298.9,4298.8,3.87669127]
[1755841794649,0.002,4298.9,4298.8,1.5504607]
[1755841794972,0.002,4298.9,4298.8,3.87669127]
[1755841795156,0.002,4298.9,4298.8,1.5504607]
[1755841796583,0.002,4298.9,4298.8,3.87669127]
[1755841796867,0.002,4298.9,4298.8,1.5504607]
[1755841797237,0.002,4298.9,4298.8,3.87669127]
[1755841797851,0.002,4298.9,4298.8,1.5504607]
[1755841798840,0.002,4298.9,4298.8,1.0922607]
[1755841799042,0.002,4298.9,4298.8,1.5504607]
[1755841799263,0.002,4298.9,4298.8,3.87669127]
[1755841799669,0.002,4298.9,4298.8,1.5504607]
[1755841799944,0.002,4298.9,4298.8,3.87669127]
[1755841800373,0.002,4298.9,4298.8,1.5504607]
[1755841801080,0.002,4298.9,4298.8,3.87669127]
[1755841801277,0.002,4298.9,4298.8,0.4546607]
[1755841801480,0.002,4298.9,4298.8,1.5728607]
[1755841802179,0.002,4298.9,4298.8,1.1146607]
[1755841802747,0.002,4298.9,4298.8,1.5728607]
[1755841803143,0.002,4298.9,4298.8,3.89909127]
[1755841803375,0.002,4298.9,4298.8,3.92235357]
[1755841804178,0.002,4298.9,4298.8,1.596123]
[1755841804348,0.002,4298.9,4298.8,3.92235357]
[1755841804983,0.002,4298.9,4298.8,1.5728607]
[1755841805187,0.002,4298.9,4298.8,3.89909127]
[1755841805850,0.002,4298.9,4298.8,3.92235357]
[1755841808147,0.002,4298.9,4298.8,10.55193156]
[1755841808681,0.002,4298.9,4298.8,3.89909127]
[1755841810166,0.002,4298.9,4298.8,10.35489127]
[1755841811286,0.2997,4298.9,4298.8,0.8055607]
[1755841811597,0.002,4298.9,4298.8,5.0099607]
[1755841811803,0.002,4298.9,4298.8,7.33619127]
[1755841812107,0.002,4298.9,4298.8,7.78809127]
[1755841819898,0.002,4298.9,4298.8,3.87409127]
[1755841820105,0.002,4298.9,4298.8,7.78809127]
[1755841820783,0.002,4298.9,4298.8,7.33619127]
[1755841821113,0.002,4298.9,4298.8,7.04579127]
[1755841821114,0.2997,4298.9,4298.8,7.04579127]
[1755841821415,0.7547,4298.9,4298.8,0.001]
[1755841821783,0.36604783,4298.9,4298.8,0.001]
[1755841821992,0.36604783,4298.9,4298.8,7.64253057]
[1755841822621,0.002,4298.9,4298.8,7.64253057]
[1755841822916,0.002,4298.9,4298.8,8.70938817]
[1755841823322,0.002,4298.9,4298.8,8.25748817]
[1755841823523,0.002,4298.9,4298.8,8.70938817]
[1755841823823,0.002,4298.9,4298.8,8.25748817]
[1755841824832,0.002,4298.9,4298.8,8.70938817]
[1755841827213,0.002,4298.9,4298.8,13.49838817]
[1755841827519,0.002,4299.4,4298.9,2.32617646]
[1755841827722,0.002,4299.4,4299.3,0.9504]
[1755841827943,0.002,4299.4,4299.3,7.18936004]
[1755841828315,0.002,4299.4,4299.3,7.64126004]
[1755841835081,0.002,4299.4,4299.3,10.81850152]
[1755841835708,0.2997,4299.4,4299.3,10.07520152]
[1755841835851,0.7547,4299.4,4299.3,10.07520152]
[1755841836182,0.7547,4299.4,4299.3,11.50280891]
[1755841836349,0.2997,4299.4,4299.3,11.50280891]
[1755841836845,0.002,4299.4,4299.3,11.50280891]
[1755841837055,0.002,4299.4,4299.3,8.50280891]
[1755841837393,0.002,4299.4,4299.3,9.24510891]
[1755841843838,1.789,4302.5,4300.7,2.32520287]
[1755841844005,0.3144,4300.8,4300.7,6.89720287]
[1755841844379,0.4622,4301.0,4300.9,2.32509474]
[1755841844599,1.789,4302.4,4301.0,0.66]
[1755841844600,0.3933,4301.3,4301.0,0.66]
[1755841844798,1.789,4302.4,4301.2,0.66]
[1755841845001,1.789,4302.4,4300.9,3.912]
[1755841845215,1.789,4302.4,4301.0,0.66]
[1755841845423,1.789,4302.4,4301.2,0.699202]
[1755841845424,0.4622,4301.7,4301.2,0.699202]
[1755841845628,0.2272,4301.3,4301.2,0.699202]
[1755841845849,0.687,4301.3,4301.2,0.699202]
[1755841848411,0.2272,4301.3,4301.2,0.699202]
[1755841848618,0.687,4301.3,4301.2,0.699202]
[1755841849123,1.05087101,4301.3,4301.2,0.699202]
[1755841853109,0.59107101,4301.3,4301.2,0.699202]
[1755841854109,1.05087101,4301.3,4301.2,0.699202]
[1755841860793,0.687,4301.3,4301.2,0.699202]
[1755841860988,0.2272,4301.3,4301.2,0.699202]
[1755841863720,0.687,4301.3,4301.2,0.699202]
[1755841863920,1.05088455,4301.3,4301.2,0.699202]
[1755841864778,0.59108455,4301.3,4301.2,0.699202]
[1755841865175,0.36388455,4301.3,4301.2,0.699202]
[1755841865783,0.36388455,4301.3,4301.2,1.416802]
[1755841866090,0.022,4301.8,4301.3,0.66]
[1755841866285,0.022,4301.8,4301.7,0.2881]
[1755841866489,0.022,4301.8,4301.4,0.4295]
[1755841866796,0.022,4301.8,4301.7,0.2881]
[1755841866997,0.022,4301.8,4301.5,0.4295]
[1755841868601,0.022,4301.8,4301.7,0.2891]
[1755841869301,0.38580914,4301.8,4301.7,0.2891]
[1755841869927,0.39040914,4301.8,4301.3,1.1157]
[1755841870097,0.39040914,4301.8,4301.4,0.4557]
[1755841870098,0.38580914,4301.8,4301.4,0.4557]
[1755841870302,0.38580914,4301.8,4301.7,0.66]
[1755841870506,0.39490914,4301.8,4301.7,0.66]
[1755841871298,0.84800914,4301.8,4301.7,0.66]
[1755841873999,0.84800914,4301.8,4300.3,0.001]
[1755841874000,3.0,4301.6,4300.3,0.001]
[1755841874204,0.38580914,4301.8,4300.6,0.699469]
[1755841874515,0.38580914,4301.8,4301.7,0.9491]
[1755841874722,0.38580914,4301.8,4301.7,0.7448]
[1755841874922,0.022,4301.8,4301.7,1.4048]
[1755841875327,0.022,4301.8,4301.7,1.790609]
[1755841876244,0.022,4301.8,4301.7,4.52680395]
[1755841879138,0.022,4301.8,4301.7,6.16414161]
[1755841879338,0.022,4301.8,4301.7,1.334909]
[1755841879921,0.022,4301.8,4301.7,3.65957134]
[1755841880121,0.022,4301.8,4301.7,4.11527134]
[1755841880516,0.022,4301.8,4301.7,4.13851796]
[1755841880752,0.022,4301.8,4301.7,5.15769935]
[1755841882055,0.022,4301.8,4301.7,6.79303701]
[1755841882351,0.022,4301.8,4301.7,9.11669935]
[1755841884222,0.022,4301.8,4301.7,2.37733701]
[1755841884425,0.2483,4301.8,4301.7,0.385809]
[1755841885053,0.022,4301.8,4301.7,0.385809]
[1755841889072,0.38581735,4301.8,4301.7,0.385809]
[1755841889888,0.38581735,4301.8,4301.7,0.674909]
[1755841891677,0.61211735,4301.8,4301.7,0.385809]
[1755841892573,0.38581735,4301.8,4301.7,0.385809]
[1755841894823,10.72325764,4301.8,4301.7,0.385809]
[1755841895113,10.35944029,4301.8,4301.7,0.385809]
[1755841895318,10.35944029,4301.8,4300.8,0.001]
[1755841895617,6.65284029,4301.1,4300.8,0.001]
[1755841895820,0.2287,4300.9,4300.8,0.001]
[1755841895981,6.65284029,4301.1,4300.8,0.001]
[1755841896180,6.65284029,4301.1,4300.9,0.699275]
[1755841897979,0.2287,4301.0,4300.9,0.699275]
[1755841899612,0.677,4301.0,4300.9,0.699275]
[1755841899821,0.2287,4301.0,4300.9,0.699275]
[1755841901098,0.677,4301.0,4300.9,0.699275]
[1755841902035,3.677,4301.0,4300.9,0.699275]
[1755841902730,3.677,4301.0,4300.8,0.001]
[1755841903026,7.3943,4300.9,4300.8,0.001]
[1755841903734,7.01671727,4301.1,4300.8,0.7379]
[1755841903735,0.36387698,4301.1,4300.8,0.7379]
[1755841903937,0.36387698,4301.1,4300.9,1.2515175]
[1755841904086,0.36387698,4301.1,4301.0,0.2891]
[1755841904305,0.36387698,4301.1,4301.0,0.7369]
[1755841906050,3.947,4301.6,4301.0,1.436113]
[1755841907737,0.022,4301.8,4301.2,0.66]
[1755841908039,3.968,4301.8,4301.2,0.66]
[1755841909244,0.0145,4301.3,4301.2,0.699168]
[1755841909448,6.65284029,4301.5,4301.2,0.699168]
[1755841910356,0.3156,4301.3,4301.2,0.699168]
[1755841910646,0.3156,4301.3,4300.8,0.001]
[1755841910827,6.65284029,4300.9,4300.8,0.001]
[1755841911032,13.91344029,4300.9,4300.8,0.001]
[1755841911201,14.28574029,4300.9,4300.8,0.001]
[1755841911406,11.64967936,4300.9,4300.8,0.001]
[1755841916142,11.28574029,4300.9,4300.8,0.001]
[1755841916347,10.91344029,4300.9,4300.8,0.001]
[1755841917926,13.91344029,4300.9,4300.8,0.001]
[1755841919219,13.91714029,4300.9,4300.8,0.001]
[1755841919547,14.28109069,4300.9,4300.8,0.001]
[1755841924264,13.95579069,4300.9,4300.8,0.2901]
[1755841924554,7.3029504,4300.9,4300.8,0.7379]
[1755841925126,7.5438504,4300.9,4300.8,0.001]
[1755841925626,7.1799,4300.9,4300.8,0.001]
[1755841926057,6.939,4300.9,4300.8,0.001]
[1755841927572,7.1799,4300.9,4300.8,0.001]
[1755841927861,7.6261,4300.9,4300.8,0.001]
[1755841928364,9.65284029,4300.4,4300.3,0.001]
[1755841928562,15.62384029,4300.4,4300.3,0.001]
[1755841928762,16.06794029,4300.4,4300.3,0.001]
[1755841929427,16.43196521,4300.4,4300.3,0.001]
[1755841932251,3.0,4300.3,4299.9,0.001]
[1755841932470,9.88384029,4300.0,4299.9,0.001]
[1755841932691,13.81984029,4300.0,4299.9,0.001]
[1755841932909,14.27584029,4300.0,4299.9,0.001]
[1755841934505,3.0,4299.9,4298.8,0.021]
[1755841934687,33.687,4299.9,4298.8,0.021]
[1755841934888,3.687,4299.9,4299.8,0.021]
[1755841935080,3.2332,4299.9,4299.8,0.021]
[1755841935286,3.0,4300.1,4299.8,0.7729]
[1755841935466,3.0,4300.1,4299.8,0.3124]
[1755841935467,3.36407324,4299.9,4299.8,0.3124]
[1755841936201,3.0,4299.9,4299.8,0.7729]
[1755841936384,3.94,4299.9,4299.8,0.7729]
[1755841936699,3.94,4299.9,4299.8,0.3124]
[1755841936907,2.1530061,4300.4,4299.8,0.7729]
[1755841937089,2.1530061,4300.4,4299.9,0.4605]
[1755841937090,3.941,4300.3,4299.9,0.4605]
[1755841937405,3.941,4300.3,4300.2,0.2914]
[1755841937626,3.941,4300.3,4300.2,0.7519]
[1755841937911,6.941,4300.3,4300.2,0.2914]
[1755841938275,7.2448,4300.3,4299.8,0.021]
[1755841938501,3.0,4299.9,4299.8,0.021]
[1755841938809,6.941,4299.9,4299.8,0.021]
[1755841939310,7.30961241,4299.9,4299.8,0.021]
[1755841940408,7.68971241,4299.9,4299.8,0.021]
[1755841940579,7.30501241,4299.9,4299.8,0.3124]
[1755841940786,0.36401241,4299.9,4299.8,0.7729]
[1755841940993,4.30701241,4299.9,4299.8,0.7729]
[1755841942194,14.2636527,4299.9,4299.8,0.021]
[1755841945922,13.89964029,4299.9,4299.8,0.021]
[1755841949777,7.3050412,4299.9,4299.8,0.7729]
[1755841949904,7.3050412,4299.9,4299.8,0.3124]
[1755841951041,7.3050412,4299.9,4299.8,0.021]
[1755841951042,7.6088412,4299.9,4299.8,0.021]
[1755841953142,7.3050412,4299.9,4299.8,0.021]
[1755841953509,3.3640412,4299.9,4299.8,0.3124]
[1755841953810,7.3040412,4299.9,4299.8,0.7729]
[1755841955323,7.3040412,4299.9,4299.8,0.3124]
[1755841955745,7.3040412,4299.9,4299.8,0.7729]
[1755841956345,7.3040412,4299.9,4299.8,0.3124]
[1755841956546,7.3040412,4299.9,4299.8,0.7729]
[1755841957060,7.3040412,4299.9,4299.8,0.3124]
[1755841957260,6.94,4299.9,4299.8,0.7729]
[1755841958144,6.94,4299.9,4299.8,0.021]
[1755841958844,6.94,4299.9,4299.8,0.3113]
[1755841959659,6.94,4299.9,4299.8,0.775]
[1755841959857,6.938,4299.9,4299.8,0.775]
[1755841960556,3.0,4299.9,4299.8,0.775]
[1755841960733,6.939,4299.9,4299.8,0.775]
[1755841961455,7.30298458,4299.9,4299.8,0.775]
[1755841962151,7.30198458,4299.9,4299.8,0.775]
[1755841962346,4.30198458,4299.9,4299.8,0.9224497]
[1755841965258,0.36398458,4299.9,4299.8,0.9224497]
[1755841965730,1.789,4300.4,4299.8,0.9224497]
[1755841965927,3.936,4300.3,4299.9,0.4637]
[1755841966165,1.789,4300.4,4300.2,0.2903]
[1755841966530,3.935,4300.3,4300.2,0.2903]
[1755841967076,3.935,4300.3,4300.2,0.989692]
[1755841967559,3.935,4300.3,4300.2,1.453392]
[1755841969159,4.29895643,4300.3,4300.2,1.453392]
[1755841971843,0.36395643,4300.3,4300.2,0.989692]
[1755841972057,4.29595643,4300.3,4300.2,1.453392]
[1755841972666,0.36395643,4300.3,4300.2,1.453392]
[1755841972987,0.36395643,4300.3,4300.2,2.49129224]
[1755841973486,0.36395643,4300.3,4300.2,2.113392]
[1755841979061,3.933,4300.4,4300.2,2.113392]
[1755841979062,3.933,4300.4,4300.3,0.66]
[1755841979381,3.933,4300.4,4300.3,0.9503]
[1755841979892,3.933,4300.4,4300.3,1.414]
[1755841982262,0.36592164,4300.4,4300.3,1.414]
[1755841982956,0.62242164,4300.4,4300.2,0.699303]
[1755841983403,1.05312164,4300.4,4300.2,0.699303]
[1755841983698,7.70596193,4300.4,4300.2,0.699303]
[1755841983995,7.27526193,4300.4,4300.2,0.699303]
[1755841984571,3.926,4300.3,4300.2,0.699303]
[1755841985094,4.2288,4300.3,4300.2,0.699303]
[1755841985394,9.0178,4300.3,4300.2,0.699303]
[1755841987490,3.0,4300.2,4299.8,0.021]
[1755841987662,3.924,4300.1,4299.8,0.021]
[1755841987865,3.924,4300.1,4299.8,0.4847]
[1755841988094,3.924,4300.1,4299.9,0.4647]
[1755841988966,3.0,4300.0,4299.9,0.4647]
[1755841989294,3.2603,4300.0,4299.9,0.4647]
[1755841989491,3.2603,4300.0,4299.8,0.021]
[1755841989492,10.34184029,4300.0,4299.8,0.021]
[1755841989696,3.0,4299.9,4299.8,0.021]
[1755841989865,6.926,4299.9,4299.8,0.7648]
[1755841990066,6.926,4299.9,4299.8,0.021]
[1755841990568,6.926,4299.9,4299.8,0.3251]
[1755841991364,7.1863,4299.9,4299.8,0.021]
[1755841992598,13.83914029,4299.9,4299.8,0.021]
[1755841992903,7.1863,4299.9,4299.8,0.021]
[1755841994271,6.926,4299.9,4299.8,0.021]
[1755841994775,6.926,4299.9,4299.8,0.7648]
[1755841995382,6.926,4299.9,4299.8,0.3251]
[1755841996090,7.1863,4299.9,4299.8,0.021]
[1755841996290,13.83914029,4299.9,4299.8,0.021]
[1755841996506,14.26624029,4299.9,4299.8,0.021]
[1755841997500,6.926,4299.9,4299.8,0.021]
[1755841997684,6.926,4299.9,4299.8,0.3251]
[1755841998205,6.926,4299.9,4299.8,0.021]
[1755841999414,6.926,4299.9,4299.8,0.7648]
[1755841999415,3.0,4299.9,4299.8,0.7648]
[1755841999997,6.926,4299.9,4299.8,0.7648]
[1755842001504,6.928,4299.9,4299.8,0.7648]
[1755842002304,3.002,4299.9,4299.8,0.7648]
[1755842002506,3.002,4299.9,4299.8,1.10704664]
[1755842005400,0.002,4299.9,4299.8,1.10704664]
[1755842005600,3.002,4299.9,4299.8,1.10704664]
[1755842006347,3.002,4299.9,4299.8,0.7648]
[1755842008044,0.002,4299.9,4299.8,1.4248]
[1755842008209,0.002,4299.9,4299.8,3.77374645]
[1755842008415,0.002,4299.9,4299.8,3.75048956]
[1755842008659,0.002,4299.9,4299.8,4.42805253]
[1755842008944,4.1852,4299.9,4299.8,0.021]
[1755842009906,3.926,4299.9,4299.8,0.021]
[1755842010908,4.2169,4299.9,4299.8,0.021]
[1755842011634,4.58087762,4299.9,4299.8,0.021]
[1755842015528,4.28997762,4299.9,4299.8,0.3251]
[1755842015737,4.28997762,4299.9,4299.8,1.59680904]
[1755842015738,7.28697762,4299.9,4299.8,1.59680904]
[1755842015915,3.36597762,4299.9,4299.8,1.57355215]
[1755842016118,3.002,4299.9,4299.8,1.57355215]
[1755842016816,3.002,4299.9,4299.8,3.89924171]
[1755842017016,3.002,4299.9,4299.8,1.57355215]
[1755842019426,3.36597183,4299.9,4299.8,1.57355215]
[1755842020716,0.36597183,4299.9,4299.8,3.89924171]
[1755842021247,0.36597183,4299.9,4299.8,1.57355215]
[1755842021548,0.36597183,4299.9,4299.8,1.13385215]
[1755842021724,0.36597183,4299.9,4299.8,0.681]
[1755842021924,0.65787183,4299.9,4299.8,0.681]
[1755842022548,3.65787183,4299.9,4299.8,0.681]
[1755842023678,3.65787183,4299.9,4299.8,0.021]
[1755842023855,3.79717183,4299.9,4299.8,0.021]
[1755842024522,3.65787183,4299.9,4299.8,0.021]
[1755842024928,4.05607183,4299.9,4299.8,0.021]
[1755842025135,3.65787183,4299.9,4299.8,0.021]
[1755842025437,4.05607183,4299.9,4299.8,0.021]
[1755842027072,3.6921,4299.9,4299.8,0.021]
[1755842030471,4.05613215,4299.9,4299.8,0.021]
[1755842033077,4.05613215,4299.9,4299.4,0.001]
[1755842033377,6.65284029,4299.5,4299.4,0.001]
[1755842033536,15.65474029,4299.5,4299.4,0.001]
[1755842033855,16.05044029,4299.5,4299.4,0.001]
[1755842036396,16.41451187,4299.5,4299.4,0.001]
[1755842039094,16.01881187,4299.5,4299.4,0.001]
[1755842041680,12.09781187,4299.5,4299.4,0.001]
[1755842041878,16.41451187,4299.5,4299.4,0.001]
[1755842043134,11.80591187,4299.5,4299.4,0.3063]
[1755842043317,0.36407158,4299.5,4299.4,0.7756]
[1755842043623,0.36407158,4299.5,4299.4,3.76150594]
[1755842043924,0.36407158,4299.5,4299.4,1.83510964]
[1755842044226,0.36407158,4299.5,4299.4,1.81185059]
[1755842044715,0.36407158,4299.5,4299.4,4.13775653]
[1755842044937,0.36407158,4299.5,4299.4,2.51126959]
[1755842046093,0.36407158,4299.5,4299.4,4.83717553]
[1755842046826,0.002,4299.9,4299.5,2.98580092]
[1755842047120,0.002,4299.9,4299.8,0.3053]
[1755842047611,0.002,4299.9,4299.8,3.76028956]
[1755842050736,0.36592573,4299.9,4299.8,3.76028956]
[1755842054947,0.36592573,4299.9,4299.8,3.93810425]
[1755842059079,0.002,4299.9,4299.8,3.93810425]
[1755842059254,0.002,4299.9,4299.8,5.10467184]
[1755842059451,0.002,4299.9,4299.8,4.63537184]
[1755842059653,0.002,4299.9,4299.8,5.06977184]
[1755842060486,0.002,4299.9,4299.8,4.63537184]
[1755842060783,0.002,4299.9,4299.8,5.06977184]
[1755842063859,0.002,4299.9,4299.8,8.98977184]
[1755842066774,0.002,4299.9,4299.8,4.63537184]
[1755842066975,0.002,4299.9,4299.8,8.98977184]
[1755842067171,0.002,4299.9,4299.8,5.06977184]
[1755842067403,0.002,4299.9,4299.8,8.98977184]
[1755842068213,0.002,4299.9,4299.8,5.07077184]
[1755842068387,0.002,4299.9,4299.8,8.99077184]
[1755842068797,0.002,4299.9,4299.8,4.63637184]
[1755842068984,0.002,4299.9,4299.8,8.99077184]
[1755842069309,0.002,4299.9,4299.8,8.55637184]
[1755842070071,0.002,4299.9,4299.8,8.99077184]
[1755842070275,0.002,4299.9,4299.8,8.98977184]
[1755842070513,0.002,4299.9,4299.8,8.55537184]
[1755842071318,0.002,4299.9,4299.8,5.07077184]
[1755842071613,0.002,4299.9,4299.8,4.64387184]
[1755842071814,0.002,4299.9,4299.8,8.99727184]
[1755842072111,0.002,4299.9,4299.8,8.56287184]
[1755842072316,0.002,4299.9,4299.8,8.25007184]
[1755842073337,0.002,4299.9,4299.8,4.33107184]
[1755842073535,0.002,4299.9,4299.8,8.25007184]
[1755842074232,0.002,4299.9,4299.8,4.15325715]
[1755842074233,0.2207,4299.9,4299.8,4.15325715]
[1755842074434,0.2207,4299.9,4299.8,8.07225715]
[1755842074600,0.2207,4299.9,4299.8,4.15325715]
[1755842074935,0.2207,4299.9,4299.8,8.24720753]
[1755842075340,0.002,4299.9,4299.8,8.24720753]
[1755842075644,0.002,4299.9,4299.8,8.99440753]
[1755842076438,0.002,4299.9,4299.8,8.56000753]
[1755842076644,0.002,4299.9,4299.8,8.99440753]
[1755842077018,0.002,4299.9,4299.8,5.07540753]
[1755842077243,0.002,4299.9,4299.8,8.99440753]
[1755842078010,0.002,4299.9,4299.8,8.24720753]
[1755842078642,0.2469,4299.9,4299.8,4.32820753]
[1755842078847,0.2469,4299.9,4299.8,8.24720753]
[1755842079147,0.002,4299.9,4299.8,8.55450753]
[1755842079348,0.2913,4299.9,4299.8,8.24720753]
[1755842079722,0.002,4299.9,4299.8,8.24720753]
[1755842080670,0.2913,4299.9,4299.8,8.24720753]
[1755842080973,0.2913,4299.9,4299.8,7.08063994]
[1755842081471,0.2913,4299.9,4299.8,0.83595038]
[1755842081669,0.2913,4299.9,4299.8,0.17595038]
[1755842081869,0.002,4299.9,4299.8,3.18489683]
[1755842082070,0.002,4299.9,4299.8,3.49219683]
[1755842082374,0.002,4299.9,4299.8,3.18489683]
[1755842082669,0.2207,4299.9,4299.8,3.18489683]
[1755842084471,0.2207,4299.9,4299.8,3.16163994]
[1755842084770,0.58465774,4299.9,4299.8,3.16163994]
[1755842084970,0.58465774,4299.9,4299.8,0.001]
[1755842084971,1.02885774,4299.9,4299.8,0.001]
[1755842085644,0.6649,4299.9,4299.8,0.001]
[1755842088371,0.2207,4299.9,4299.8,0.001]
[1755842088550,0.6649,4299.9,4299.8,0.001]
[1755842088971,1.02891629,4299.9,4299.8,0.001]
[1755842090956,4.50271629,4299.9,4299.8,0.001]
[1755842092283,4.94691629,4299.9,4299.8,0.001]
[1755842093849,4.28401629,4299.9,4299.8,0.001]
[1755842094173,4.52891629,4299.9,4299.8,0.001]
[1755842094485,4.97311629,4299.9,4299.8,0.001]
[1755842095752,4.52891629,4299.9,4299.8,0.001]
[1755842096263,0.36601629,4299.9,4299.8,0.001]
[1755842096463,0.36601629,4299.9,4299.8,0.7634]
[1755842096993,0.36601629,4299.9,4299.8,3.77234645]
[1755842097145,0.002,4299.9,4299.8,4.39148894]
[1755842097494,0.002,4299.9,4299.8,4.36823205]
[1755842099390,0.002,4299.9,4299.8,2.04254249]
[1755842099550,0.002,4299.9,4299.8,0.9683]
[1755842099757,0.002,4299.9,4299.8,0.001]
[1755842099758,0.0064,4299.9,4299.8,0.001]
[1755842100089,0.4443,4299.9,4299.8,0.001]
[1755842100297,0.0064,4299.9,4299.8,0.001]
[1755842100655,0.4443,4299.9,4299.8,0.001]
[1755842101387,0.80828226,4299.9,4299.8,0.001]
[1755842102879,0.37038226,4299.9,4299.8,0.001]
[1755842105678,0.0064,4299.9,4299.8,0.001]
[1755842106518,0.002,4299.9,4299.8,0.001]
[1755842106810,0.002,4299.9,4299.8,0.78665689]
[1755842107578,0.002,4299.9,4299.8,0.7634]
[1755842107979,0.3008,4299.9,4299.8,0.001]
[1755842109770,0.66477815,4299.9,4299.8,0.001]
[1755842109967,0.36597815,4299.9,4299.8,0.001]
[1755842110221,0.36597815,4299.9,4299.8,0.299]
[1755842110382,0.36597815,4299.9,4299.8,3.75018956]
[1755842110583,0.36597815,4299.9,4299.8,4.39037006]
[1755842110912,0.36597815,4299.9,4299.8,4.36711317]
[1755842115735,0.002,4299.9,4299.8,4.36711317]
[1755842121245,0.002,4299.9,4299.8,8.28411317]
[1755842125836,0.002,4299.9,4299.8,7.81861317]
[1755842127358,0.6897,4299.9,4299.8,0.001]
[1755842128343,0.3008,4299.9,4299.8,0.001]
[1755842128848,0.6897,4299.9,4299.8,0.001]
[1755842129050,0.3008,4299.9,4299.8,0.001]
[1755842129255,0.002,4299.9,4299.8,0.32225689]
[1755842129639,0.002,4299.9,4299.8,0.02425689]
[1755842129840,0.002,4299.9,4299.8,0.959]
[1755842130048,0.002,4299.9,4299.8,4.24711556]
[1755842130445,0.002,4299.9,4299.8,4.27037245]
[1755842130971,0.36595213,4299.9,4299.8,4.24711556]
[1755842131772,0.36595213,4299.9,4299.8,1.455926]
[1755842132067,0.61735213,4299.9,4299.8,0.661]
[1755842133340,0.36595213,4299.9,4299.8,2.98668956]
[1755842133563,0.36595213,4299.9,4299.8,3.28468956]
[1755842133766,0.36595213,4299.9,4299.8,3.75018956]
[1755842133960,0.36595213,4299.9,4299.8,3.77344645]
[1755842134168,0.36595213,4299.9,4299.8,4.78429646]
[1755842134372,0.36595213,4299.9,4299.8,4.76103957]
[1755842135857,0.36595213,4299.9,4299.8,7.76103957]
[1755842136042,0.002,4299.9,4299.8,7.76103957]
[1755842136373,0.002,4299.9,4299.8,11.67703957]
[1755842137885,0.002,4299.9,4299.8,11.21153957]
[1755842138066,0.002,4299.9,4299.8,4.29553957]
[1755842138266,0.0064,4299.9,4299.8,3.99753957]
[1755842138464,0.0064,4299.9,4299.8,7.91353957]
[1755842139064,0.0064,4299.9,4299.8,0.001]
[1755842139065,0.0107,4299.9,4299.8,0.001]
[1755842139242,0.0107,4299.9,4299.8,2.32668956]
[1755842139446,0.3746484,4299.9,4299.8,2.32668956]
[1755842139676,0.3746484,4299.9,4299.8,0.001]
[1755842140281,0.3746484,4299.9,4299.8,2.32668956]
[1755842140495,0.3659484,4299.9,4299.8,2.32668956]
[1755842141286,0.3659484,4299.9,4299.8,0.001]
[1755842143368,1.0531484,4299.9,4299.8,0.001]
[1755842144291,7.70598869,4299.9,4299.8,0.001]
[1755842147008,7.34204029,4299.9,4299.8,0.001]
[1755842147368,6.90174029,4299.9,4299.8,0.001]
[1755842147970,7.34394029,4299.9,4299.8,0.001]
[1755842148294,9.13294029,4299.9,4299.8,0.001]
[1755842148470,12.13294029,4299.9,4299.8,0.001]
[1755842149606,11.69074029,4299.9,4299.8,0.001]
[1755842149810,11.69074029,4299.9,4299.8,0.3008]
[1755842149811,1.791,4299.9,4299.8,0.3008]
[1755842150107,6.07000563,4299.9,4299.8,0.001]
[1755842150270,6.31690563,4299.9,4299.8,0.001]
[1755842150775,6.07000563,4299.9,4299.8,0.001]
[1755842150976,6.07000563,4299.9,4299.8,3.07788956]
[1755842151286,6.07000563,4299.9,4299.8,0.7522]
[1755842151815,0.36600563,4299.9,4299.8,3.07788956]
[1755842152012,0.36600563,4299.9,4299.8,4.31326761]
[1755842152570,0.36600563,4299.9,4299.8,4.29001072]
[1755842154301,0.36600563,4299.9,4299.8,8.20501072]
[1755842154876,0.36600563,4299.9,4299.8,4.29001072]
[1755842155502,0.36600563,4299.9,4299.8,3.83861072]
[1755842155802,0.002,4299.9,4299.8,4.29001072]
[1755842156539,0.002,4299.9,4299.8,4.50687212]
[1755842157433,0.002,4299.9,4299.8,1.72978256]
[1755842157636,0.002,4299.9,4299.8,4.05547212]
[1755842158129,0.0064,4299.9,4299.8,1.42998256]
[1755842158315,0.002,4299.9,4299.8,3.75567212]
[1755842158636,0.002,4299.9,4299.8,1.42998256]
[1755842158997,0.0107,4299.9,4299.8,0.8778614]
[1755842159197,0.37465385,4299.9,4299.8,0.87803401]
[1755842159394,0.37465385,4299.9,4299.8,3.20372357]
[1755842159598,0.36595385,4299.9,4299.8,3.50352357]
[1755842159794,0.36595385,4299.9,4299.8,4.54728192]
[1755842160346,0.36595385,4299.9,4299.8,4.09588192]
[1755842160519,0.66875385,4299.9,4299.8,0.87803401]
[1755842161457,1.05185385,4299.9,4299.8,0.21803401]
[1755842162043,0.66875385,4299.9,4299.8,0.21803401]